fUST/lending_fUST_20251214
["ID","MTS","AMOUNT","RATE_DAILY","PERIOD"]
[398469377,1765696238322,-500.0,0.00021917,2]
[398469378,1765696238331,-282.50290652,0.00021917,2]
[398469379,1765696238339,-500.0,0.00021917,2]
[398469380,1765696238348,-500.0,0.00021917,2]
[398469381,1765696238357,-1170.93,0.00021917,2]
[398469382,1765696238366,-500.0,0.00021917,2]
[398469383,1765696238375,-500.0,0.00021917,2]
[398469384,1765696238384,-500.0,0.00021917,2]
[398469385,1765696238393,-500.0,0.00021917,2]
[398469386,1765696238401,-799.1,0.00021917,2]
[398469387,1765696238410,-500.0,0.00021917,2]
[398469388,1765696238419,-500.0,0.00021917,2]
[398469389,1765696238427,-500.0,0.00021917,2]
[398469390,1765696238437,-957.23,0.00021917,2]
[398469391,1765696238446,-500.0,0.00021917,2]
[398469392,1765696238455,-500.0,0.00021917,2]
[398469393,1765696238464,-500.0,0.00021917,2]
[398469394,1765696238472,-500.0,0.00021917,2]
[398469395,1765696238481,-500.0,0.00021917,2]
[398469396,1765696238490,-501.57105437,0.00021917,2]
[398469397,1765696238498,-500.0,0.00021917,2]
[398469398,1765696238507,-678.71,0.00021917,2]
[398469399,1765696238515,-1586.94,0.00021917,2]
[398469400,1765696238524,-500.0,0.00021917,2]
[398469401,1765696238533,-500.0,0.00021917,2]
[398469402,1765696238542,-500.0,0.00021917,2]
[398469403,1765696238552,-1145.75,0.00021917,2]
[398469404,1765696238561,-744.61,0.00021917,2]
[398469405,1765696238570,-500.0,0.00021917,2]
[398469406,1765696238579,-500.0,0.00021917,2]
[398469407,1765696238587,-500.0,0.00021917,2]
[398469408,1765696238596,-909.79,0.00021917,2]
[398469409,1765696238605,-627.16,0.00021917,2]
[398469410,1765696238616,-500.0,0.00021917,2]
[398469411,1765696238625,-1599.15,0.00021917,2]
[398469412,1765696238634,-621.96,0.00021917,2]
[398469413,1765696238643,-500.0,0.00021917,2]
[398469414,1765696238652,-500.0,0.00021917,2]
[398469415,1765696238661,-592.95,0.00021917,2]
[398469416,1765696238670,-500.0,0.00021917,2]
[398469417,1765696238679,-566.66,0.00021917,2]
[398469418,1765696238687,-1998.65565003,0.00021917,2]
[398469419,1765696238697,-500.0,0.00021917,2]
[398469420,1765696238706,-514.67,0.00021917,2]
[398469421,1765696238715,-500.0,0.00021917,2]
[398469422,1765696238724,-500.0,0.00021917,2]
[398469423,1765696238733,-1106.11,0.00021917,2]
[398469424,1765696238742,-500.0,0.00021917,2]
[398469425,1765696238751,-500.0,0.00021917,2]
[398469426,1765696238760,-737.19,0.00021917,2]
[398469427,1765696238769,-500.0,0.00021917,2]
[398469428,1765696238778,-500.0,0.00021917,2]
[398469429,1765696238787,-852.24,0.00021917,2]
[398469430,1765696238796,-500.0,0.00021917,2]
[398469431,1765696238805,-500.0,0.00021917,2]
[398469432,1765696238814,-514.04038373,0.00021917,2]
[398469433,1765696238830,-212.01961627,0.00021917,2]
[398469434,1765696238839,-500.0,0.00021917,2]
[398469435,1765696238848,-616.97,0.00021917,2]
[398469436,1765696238858,-500.0,0.00021917,2]
[398469437,1765696238868,-500.0,0.00021917,2]
[398469438,1765696238877,-506.12,0.00021917,2]
[398469439,1765696238886,-500.0,0.00021917,2]
[398469440,1765696238895,-500.0,0.00021917,2]
[398469441,1765696238904,-152.67051442,0.00021917,2]
[398469442,1765696238913,-500.0,0.00021917,2]
[398469443,1765696238922,-43.81640631,0.00021917,2]
[398469453,1765696240229,-562.13359369,0.00021917,2]
[398469454,1765696240239,-437.86640631,0.00021917,2]
[398469460,1765696242980,-514.75359369,0.00021917,2]
[398469461,1765696242989,-396.99640631,0.00021917,2]
[398469467,1765696246089,-850.02,0.00021907,10]
[398469468,1765696246099,-297.14359369,0.00021917,2]
[398469469,1765696246108,-501.74568497,0.00021917,2]
[398469470,1765696246117,-500.0,0.00021917,2]
[398469471,1765696246126,-500.0,0.00021917,2]
[398469472,1765696246135,-500.0,0.00021917,2]
[398469473,1765696246144,-645.59934926,0.00021917,2]
[398469474,1765696246152,-500.0,0.00021917,2]
[398469475,1765696246161,-945.73,0.00021917,2]
[398469476,1765696246170,-500.0,0.00021917,2]
[398469477,1765696246179,-500.0,0.00021917,2]
[398469478,1765696246188,-500.0,0.00021917,2]
[398469479,1765696246197,-500.0,0.00021917,2]
[398469480,1765696246206,-500.0,0.00021917,2]
[398469481,1765696246215,-500.0,0.00021917,2]
[398469482,1765696246224,-733.67,0.00021917,2]
[398469483,1765696246233,-631.48,0.00021917,2]
[398469484,1765696246242,-500.0,0.00021917,2]
[398469485,1765696246251,-500.0,0.00021917,2]
[398469486,1765696246261,-500.0,0.00021917,2]
[398469487,1765696246271,-500.0,0.00021917,2]
[398469488,1765696246279,-500.0,0.00021917,2]
[398469489,1765696246288,-14.61137208,0.00021917,2]
[398469490,1765696246303,-773.43862792,0.00021917,2]
[398469491,1765696246311,-286.7007272,0.00021917,2]
[398469544,1765697243160,-300.0,0.00013673,2]
[398469545,1765697243187,-223.76741277,0.00013686,2]
[398469546,1765697243207,-500.0,0.00013699,2]
[398469547,1765697243227,-67.79399869,0.00013699,2]
[398469548,1765697284322,953.0,0.000134,2]
[398469620,1765697432287,-300.0,0.00013673,2]
[398469622,1765697432297,-562.84064076,0.00013673,2]
[398469655,1765697438118,-52.15935924,0.00013673,2]
[398469656,1765697438128,-224.48384729,0.00013686,2]
[398469657,1765697438137,-432.20600131,0.00013699,2]
[398469658,1765697438147,-500.0,0.00013699,2]
[398469659,1765697438158,-250.50327444,0.00014034,2]
[398469660,1765697438167,-23.7367727,0.00014221,2]
[398469661,1765697438204,-414.22466379,0.00014221,2]
[398469662,1765697438214,-1200.0,0.00014246,2]
[398469663,1765697438223,-1136.52709463,0.00014247,2]
[398469664,1765697438232,-1000.0,0.00014247,2]
[398469665,1765697438240,-300.0,0.0001479,2]
[398469666,1765697438249,-300.0,0.0001479,2]
[398469667,1765697438258,-300.0,0.0001479,2]
[398469668,1765697438268,-300.0,0.0001479,2]
[398469669,1765697438277,-300.0,0.0001479,2]
[398469670,1765697438287,-500.0,0.00014795,2]
[398469671,1765697438296,-806.83959457,0.00015,5]
[398469918,1765697443181,-302.0,0.00015,5]
[398469926,1765697443333,-2642.89995446,0.00015,5]
[398469928,1765697443343,-300.0,0.00015089,2]
[398469930,1765697443353,-300.0,0.00015089,2]
[398469931,1765697443363,-300.0,0.00015089,2]
[398469933,1765697443374,-300.0,0.00015089,2]
[398469934,1765697443384,-300.0,0.00015089,2]
[398469935,1765697443394,-300.0,0.00015089,2]
[398469936,1765697443404,-46.28983336,0.00015089,2]
[398469938,1765697446202,-253.71016664,0.00015089,2]
[398469939,1765697446211,-300.0,0.00015089,2]
[398469940,1765697446220,-131.58857666,0.00015089,2]
[398469947,1765697447886,457.97,0.00013418,2]
[398469948,1765697463838,500.0,0.00013273,2]
[398469949,1765697466814,500.0,0.00013273,2]
[398469950,1765697467077,500.0,0.00013273,2]
[398469951,1765697467804,500.0,0.00013273,2]
[398469952,1765697473170,500.0,0.00013273,2]
[398469953,1765697477012,500.0,0.00013273,2]
[398469954,1765697480202,500.0,0.00013273,2]
[398469955,1765697480777,500.0,0.00013273,2]
[398469956,1765697481185,83.64,0.00013273,2]
[398469957,1765697481206,416.36,0.00013273,2]
[398469958,1765697482829,500.0,0.00013273,2]
[398469959,1765697487844,150.0,0.00010385,2]
[398469960,1765697488246,150.0,0.00010879,2]
[398469961,1765697525888,500.0,0.00013273,2]
[398469962,1765697528394,500.0,0.00013273,2]
[398469963,1765697531652,500.0,0.00013273,2]
[398469964,1765697537015,417.70035796,0.00013273,2]
[398469966,1765697583475,500.0,0.00013273,2]
[398469967,1765697583962,500.0,0.00013273,2]
[398469968,1765697586362,500.0,0.00013273,2]
[398469969,1765697586911,500.0,0.00013273,2]
[398469970,1765697593084,500.0,0.00013273,2]
[398469971,1765697595464,500.0,0.00013273,2]
[398469972,1765697598992,500.0,0.00013273,2]
[398469973,1765697600008,500.0,0.00013273,2]
[398469974,1765697600082,500.0,0.00013273,2]
[398469975,1765697601550,500.0,0.00013273,2]
[398469976,1765697647073,500.0,0.00013273,2]
[398469977,1765697650374,500.0,0.00013273,2]
[398469978,1765697703334,500.0,0.00013273,2]
[398469979,1765697703461,526.14405521,0.00013273,2]
[398469980,1765697717460,500.0,0.00013273,2]
[398469981,1765697719631,500.0,0.00013273,2]
[398469982,1765697723013,500.0,0.00013273,2]
[398469983,1765697724068,56.16558683,0.00013273,2]
[398469984,1765697724092,443.83441317,0.00013273,2]
[398469985,1765697724811,500.0,0.00013273,2]
[398469986,1765697725332,500.0,0.00013273,2]
[398469987,1765697769456,500.0,0.00013273,2]
[398469988,1765697772480,500.0,0.00013273,2]
[398469989,1765697823453,500.0,0.00013273,2]
[398469990,1765697825395,500.0,0.00013273,2]
[398469991,1765697825425,340.27515161,0.00013273,2]
[398469992,1765697826780,500.0,0.00013273,2]
[398469993,1765697828777,500.0,0.00013273,2]
[398469994,1765697829840,500.0,0.00013273,2]
[398469995,1765697837925,500.0,0.00013273,2]
[398469996,1765697842450,168.17158996,0.00013273,2]
[398469997,1765697843999,500.0,0.00013273,2]
[398469998,1765697844268,500.0,0.00013273,2]
[398470004,1765697885914,500.0,0.00013273,2]
[398470005,1765697889047,500.0,0.00013273,2]
[398470006,1765697948882,500.0,0.00013273,2]
[398470007,1765697957547,500.0,0.00013273,2]
[398470008,1765697963016,500.0,0.00013273,2]
[398470009,1765697963430,500.0,0.00013273,2]
[398470010,1765698004987,47.72884526,0.00013273,2]
[398470011,1765698005013,452.27115474,0.00013273,2]
[398470012,1765698012410,500.0,0.00013273,2]
[398470013,1765698070317,500.0,0.00013273,2]
[398470014,1765698070706,500.0,0.00013273,2]
[398470015,1765698078994,500.0,0.00013273,2]
[398470016,1765698083383,500.0,0.00013273,2]
[398470017,1765698083496,500.0,0.00013273,2]
[398470018,1765698132184,500.0,0.00013273,2]
[398470019,1765698138892,665.23,0.00019,120]
[398470020,1765698184920,500.0,0.00013273,2]
[398470021,1765698190052,500.0,0.00013273,2]
[398470022,1765698247127,500.0,0.00013273,2]
[398470023,1765698247407,500.0,0.00013273,2]
[398470024,1765698247567,500.0,0.00013273,2]
[398470025,1765698252025,1536.0,0.000135,2]
[398470029,1765698318552,500.0,0.00013273,2]
[398470034,1765698371556,1511.73884526,0.000135,2]
[398470035,1765698371582,819.26115474,0.000135,2]
[398470036,1765698423829,431.84282633,0.00013273,2]
[398470039,1765698485396,500.0,0.00013273,2]
[398470040,1765698491433,2399.0,0.000135,2]
[398470041,1765698543173,500.0,0.00013273,2]
[398470042,1765698549066,276.83025382,0.00013273,2]
[398470045,1765698607474,500.0,0.00013273,2]
[398470046,1765698611768,2471.0,0.000135,2]
[398470115,1765698632426,-300.0,0.00013673,2]
[398470117,1765698632436,-226.53417034,0.00013673,2]
[398470119,1765698632445,-615.0,0.00013673,2]
[398470121,1765698632455,-300.0,0.00013689,2]
[398470123,1765698632464,-1117.0,0.00013689,2]
[398470125,1765698632473,-1460.143066,0.00013699,2]
[398470127,1765698632483,-402.02084691,0.00013699,2]
[398470129,1765698632491,-500.0,0.00013699,2]
[398470131,1765698632501,-213.68251663,0.00013699,2]
[398470133,1765698632509,-572.86602411,0.00013699,2]
[398470135,1765698632518,-500.0,0.00013699,2]
[398470137,1765698632527,-500.0,0.00013699,2]
[398470138,1765698632535,-643.50795874,0.00013699,2]
[398470140,1765698632544,-500.0,0.00013699,2]
[398470142,1765698632553,-500.0,0.00013699,2]
[398470143,1765698632562,-500.0,0.00013699,2]
[398470144,1765698632570,-500.0,0.00013699,2]
[398470145,1765698632579,-500.0,0.00013699,2]
[398470146,1765698632588,-500.0,0.00013699,2]
[398470147,1765698632598,-500.0,0.00013699,2]
[398470148,1765698632607,-374.81526525,0.00013699,2]
[398470149,1765698632615,-500.0,0.00013699,2]
[398470150,1765698632624,-500.0,0.00013699,2]
[398470151,1765698632633,-500.0,0.00013699,2]
[398470152,1765698632642,-500.0,0.00013699,2]
[398470153,1765698632651,-500.0,0.00013699,2]
[398470154,1765698632660,-500.0,0.00013699,2]
[398470155,1765698632671,-500.0,0.00013699,2]
[398470156,1765698632680,-433.12303201,0.00013699,2]
[398470157,1765698632692,-66.87696799,0.00013699,2]
[398470158,1765698632701,-500.0,0.00013699,2]
[398470159,1765698632711,-487.5488892,0.00013699,2]
[398470160,1765698638132,150.0,9.155e-05,2]
[398470169,1765698638363,-74.63717032,0.00013699,2]
[398470171,1765698638373,-500.0,0.00013699,2]
[398470173,1765698638383,-281.74427044,0.00013699,2]
[398470175,1765698638392,-492.39855924,0.00013699,2]
[398470178,1765698638407,-7.60144076,0.00013699,2]
[398470180,1765698638416,-500.0,0.00013699,2]
[398470182,1765698638425,-500.0,0.00013699,2]
[398470184,1765698638434,-500.0,0.00013699,2]
[398470186,1765698638444,-500.0,0.00013699,2]
[398470188,1765698638453,-500.0,0.00013699,2]
[398470190,1765698638462,-500.0,0.00013699,2]
[398470192,1765698638471,-500.0,0.0001382,2]
[398470194,1765698638480,-627.96289134,0.0001382,2]
[398470195,1765698638490,-500.0,0.0001382,2]
[398470197,1765698638499,-1000.0,0.00013821,2]
[398470198,1765698638508,-1000.0,0.00013821,2]
[398470199,1765698638517,-1000.0,0.00013821,2]
[398470200,1765698638526,-1000.0,0.00013821,2]
[398470201,1765698638535,-1027.86051614,0.00013821,2]
[398470202,1765698638544,-1000.0,0.00013821,2]
[398470203,1765698638553,-1000.0,0.00013821,2]
[398470204,1765698638563,-1000.0,0.00013821,2]
[398470205,1765698638572,-300.0,0.00013972,2]
[398470206,1765698638581,-300.0,0.00013972,2]
[398470207,1765698638590,-300.0,0.00013972,2]
[398470208,1765698638599,-300.0,0.00013972,2]
[398470209,1765698638608,-300.0,0.00013972,2]
[398470210,1765698638617,-300.0,0.00013972,2]
[398470211,1765698638627,-300.0,0.00013972,2]
[398470212,1765698638636,-300.0,0.00013972,2]
[398470213,1765698638645,-300.0,0.00013972,2]
[398470214,1765698638654,-300.0,0.00013972,2]
[398470215,1765698638663,-300.0,0.00013972,2]
[398470216,1765698638672,-300.0,0.00013972,2]
[398470217,1765698638681,-300.0,0.00013972,2]
[398470218,1765698638691,-300.0,0.00013972,2]
[398470219,1765698638700,-300.0,0.00013972,2]
[398470220,1765698638709,-600.0,0.00014221,2]
[398470221,1765698638718,-1000.0,0.00014247,2]
[398470222,1765698638727,-1000.0,0.00014247,2]
[398470223,1765698638736,-1000.0,0.00014247,2]
[398470224,1765698638745,-505.04867889,0.00014247,2]
[398470225,1765698638754,-635.9137877,0.00014247,2]
[398470226,1765698638763,-873.13204073,0.00014247,2]
[398470227,1765698638772,-1000.0,0.00014247,2]
[398470228,1765698638781,-1000.0,0.00014247,2]
[398470229,1765698638790,-1000.0,0.00014247,2]
[398470230,1765698638800,-868.16361925,0.00014247,2]
[398470231,1765698638808,-1000.0,0.00014247,2]
[398470232,1765698638819,-1000.0,0.00014247,2]
[398470233,1765698638828,-467.76641208,0.00014247,2]
[398470234,1765698638837,-1000.0,0.00014247,2]
[398470235,1765698638846,-1000.0,0.00014247,2]
[398470236,1765698638855,-590.68363868,0.00014247,2]
[398470237,1765698638864,-1000.0,0.00014247,2]
[398470238,1765698638873,-1000.0,0.00014247,2]
[398470239,1765698638882,-1000.46223617,0.00014247,2]
[398470240,1765698638891,-1000.0,0.00014247,2]
[398470241,1765698638901,-1000.0,0.00014247,2]
[398470242,1765698638910,-1000.0,0.00014247,2]
[398470243,1765698638919,-1000.0,0.00014247,2]
[398470244,1765698638929,-1000.0,0.00014247,2]
[398470245,1765698638939,-1000.0,0.00014247,2]
[398470246,1765698638948,-600.0,0.0001425,2]
[398470247,1765698638957,-1500.0,0.00014368,2]
[398470248,1765698638967,-1033.09506622,0.00014368,2]
[398470249,1765698638976,-1500.0,0.00014368,2]
[398470250,1765698638984,-1000.0,0.00014368,2]
[398470251,1765698638994,-1000.0,0.00014368,2]
[398470252,1765698639003,-161.1976458,0.00015068,2]
[398470253,1765698639016,-267.310321,0.00015673,2]
[398470254,1765698639026,-720.0,0.00015675,2]
[398470255,1765698639035,-206.89018241,0.00016068,2]
[398470256,1765698639045,-864.0,0.00017243,2]
[398470257,1765698639054,-308.08647166,0.00017673,2]
[398470258,1765698639064,-1000.0,0.00018967,10]
[398470259,1765698639073,-162.38676692,0.00019,2]
[398470260,1765698639082,-165.68509307,0.00019436,5]
[398470261,1765698639091,-198.08824625,0.00019565,2]
[398470262,1765698639100,-348.86262232,0.00019673,2]
[398470263,1765698639110,-384.962792,0.00019726,2]
[398470264,1765698639119,-10875.93478679,0.000198,30]
[398470265,1765698639128,-150.22008987,0.0002,30]
[398470266,1765698639137,-262.92,0.000201,2]
[398470267,1765698639147,-247.83730664,0.00020173,2]
[398470268,1765698639156,-900.0,0.00020273,7]
[398470269,1765698639165,-206.89018241,0.00020322,2]
[398470270,1765698639174,-192.481396,0.00020356,2]
[398470271,1765698639184,-1360.0,0.00020469,2]
[398470272,1765698639193,-631.0,0.00020469,2]
[398470273,1765698639205,-2156.0,0.00020469,2]
[398470274,1765698639214,-251.07985799,0.00020532,2]
[398470275,1765698639223,-405.0,0.00020532,2]
[398470276,1765698639232,-151.56497009,0.00020532,2]
[398470277,1765698639242,-151.53601139,0.00020532,2]
[398470278,1765698639251,-2469.22889938,0.00020532,2]
[398470279,1765698639260,-501.65888338,0.00020532,2]
[398470280,1765698639271,-202.49737164,0.00020532,2]
[398470281,1765698639280,-250.0,0.00020532,2]
[398470282,1765698639290,-553.64373807,0.00020532,2]
[398470283,1765698639299,-250.0,0.00020532,2]
[398470284,1765698639309,-2674.60743027,0.00020532,2]
[398470285,1765698639318,-202.46382267,0.00020532,2]
[398470286,1765698639327,-500.0,0.00020532,2]
[398470287,1765698639336,-256.46972666,0.00020532,2]
[398470288,1765698639346,-1460.143066,0.00020548,2]
[398470289,1765698639355,-424.918,0.00020641,2]
[398470290,1765698639365,-415.29916466,0.00020864,10]
[398470291,1765698639704,150.0,9.59e-05,2]
[398470300,1765698640733,-584.70083534,0.00020864,10]
[398470301,1765698640743,-244.0,0.00020864,10]
[398470302,1765698640752,-500.0,0.00021,2]
[398470303,1765698640762,-574.12855637,0.0002108,2]
[398470304,1765698640772,-900.0,0.00021369,7]
[398470305,1765698640781,-430.29741084,0.0002137,10]
[398470349,1765698643927,-222.00348693,0.00014513,2]
[398470350,1765698643938,-261.96411458,0.00016513,2]
[398470351,1765698643948,-301.92474223,0.00018513,2]
[398470352,1765698643958,-341.88536988,0.00020513,2]
[398470353,1765698643968,-326.06258916,0.0002137,10]
[398470354,1765698643978,-3595.86213233,0.0002138,2]
[398470358,1765698647321,-17130.78374691,0.0002138,2]
[398470359,1765698647333,-20494.34494848,0.0002138,2]
[398470360,1765698666407,500.0,0.00013273,2]
[398470361,1765698673736,500.0,0.00013273,2]
[398470364,1765698682096,500.0,0.00013273,2]
[398470366,1765698682883,302.07576511,0.00013273,2]
[398470367,1765698682906,197.92423489,0.00013273,2]
[398470373,1765698724879,9802.08576511,0.000135,2]
[398470374,1765698724902,197.91423489,0.000135,2]
[398470375,1765698725171,500.0,0.00013273,2]
[398470376,1765698733383,500.0,0.00013273,2]
[398470377,1765698734124,500.0,0.00013273,2]
[398470379,1765698793429,500.0,0.00013273,2]
[398470380,1765698801164,500.0,0.00013273,2]
[398470381,1765698801743,500.0,0.00013273,2]
[398470382,1765698844795,1263.0,0.000135,2]
[398470383,1765698846272,500.0,0.00013273,2]
[398470384,1765698854408,500.0,0.00013273,2]
[398470385,1765698854875,500.0,0.00013273,2]
[398470386,1765698905410,500.0,0.00013273,2]
[398470387,1765698905439,500.0,0.00013273,2]
[398470388,1765698906308,500.0,0.00013273,2]
[398470389,1765698915795,500.0,0.00013273,2]
[398470390,1765698922454,500.0,0.00013273,2]
[398470391,1765698923025,500.0,0.00013273,2]
[398470392,1765698964851,500.0,0.00013273,2]
[398470393,1765698966017,500.0,0.00013273,2]
[398470394,1765698974092,500.0,0.00013273,2]
[398470395,1765698974469,500.0,0.00013273,2]
[398470396,1765699038473,500.0,0.00013273,2]
[398470397,1765699043559,500.0,0.00013273,2]
[398470398,1765699088767,500.0,0.00013273,2]
[398470399,1765699096226,500.0,0.00013273,2]
[398470400,1765699096985,500.0,0.00013273,2]
[398470401,1765699145400,556.61454339,0.00013273,2]
[398470402,1765699158435,500.0,0.00013273,2]
[398470403,1765699162951,500.0,0.00013273,2]
[398470406,1765699207109,500.0,0.00013273,2]
[398470408,1765699211327,443.39545661,0.00013273,2]
[398470409,1765699211350,56.60454339,0.00013273,2]
[398470410,1765699218392,500.0,0.00013273,2]
[398470411,1765699218478,500.0,0.00013273,2]
[398470412,1765699266791,500.0,0.00013273,2]
[398470413,1765699281022,500.0,0.00013273,2]
[398470414,1765699283041,492.68779205,0.00013273,2]
[398470415,1765699325310,500.0,0.00013273,2]
[398470416,1765699326052,500.0,0.00013273,2]
[398470417,1765699326971,500.0,0.00013273,2]
[398470418,1765699332192,500.0,0.00013273,2]
[398470419,1765699339005,500.0,0.00013273,2]
[398470420,1765699339355,500.0,0.00013273,2]
[398470421,1765699342876,150.0,9.361e-05,2]
[398470422,1765699343287,150.0,9.807e-05,2]
[398470423,1765699383197,500.0,0.00013273,2]
[398470424,1765699400954,500.0,0.00013273,2]
[398470425,1765699447151,500.0,0.00013273,2]
[398470426,1765699452207,500.0,0.00013273,2]
[398470427,1765699457456,500.0,0.00013273,2]
[398470428,1765699457489,500.0,0.00013273,2]
[398470433,1765699520582,500.0,0.00013273,2]
[398470434,1765699568084,500.0,0.00013273,2]
[398470435,1765699568113,150.71766456,0.00013273,2]
[398470436,1765699568136,349.28233544,0.00013273,2]
[398470437,1765699571645,500.0,0.00013273,2]
[398470438,1765699575873,500.0,0.00013273,2]
[398470439,1765699579156,500.0,0.00013273,2]
[398470440,1765699580041,500.0,0.00013273,2]
[398470441,1765699623868,500.0,0.00013273,2]
[398470442,1765699640803,500.0,0.00013273,2]
[398470443,1765699683780,500.0,0.00013273,2]
[398470444,1765699688425,500.0,0.00013273,2]
[398470445,1765699693490,500.0,0.00013273,2]
[398470446,1765699696778,336.00024543,0.00013273,2]
[398470447,1765699696989,500.0,0.00013273,2]
[398470448,1765699764824,500.0,0.00013273,2]
[398470449,1765699812922,500.0,0.00013273,2]
[398470450,1765699817089,500.0,0.00013273,2]
[398470451,1765699820515,500.0,0.00013273,2]
[398470489,1765699832620,-3110.22723046,0.00013596,2]
[398470490,1765699832630,-613.0,0.00013596,2]
[398470492,1765699832640,-196.79739413,0.00013616,2]
[398470494,1765699832649,-300.0,0.00013673,2]
[398470497,1765699832658,-1200.0,0.00013683,2]
[398470500,1765699832668,-286.84122963,0.00013684,2]
[398470502,1765699832677,-300.0,0.00013691,2]
[398470505,1765699832687,-252.0,0.00013692,2]
[398470507,1765699832696,-300.0,0.00013692,2]
[398470510,1765699832705,-300.0,0.00013692,2]
[398470513,1765699832714,-1200.0,0.00013693,2]
[398470515,1765699832724,-184.76578047,0.00013695,2]
[398470518,1765699832733,-500.0,0.00013695,2]
[398470520,1765699832742,-500.0,0.00013695,2]
[398470523,1765699832751,-500.0,0.00013695,2]
[398470526,1765699832760,-274.3409194,0.00013695,2]
[398470527,1765699832769,-500.0,0.00013695,2]
[398470529,1765699832778,-500.0,0.00013695,2]
[398470530,1765699832787,-500.0,0.00013695,2]
[398470532,1765699832796,-176.42608533,0.00013695,2]
[398470533,1765699832804,-500.0,0.00013695,2]
[398470535,1765699832813,-500.0,0.00013695,2]
[398470536,1765699832822,-500.0,0.00013695,2]
[398470538,1765699832831,-300.0,0.00013695,2]
[398470539,1765699832841,-500.0,0.00013695,2]
[398470541,1765699832850,-400.0,0.00013695,2]
[398470542,1765699832858,-500.0,0.00013695,2]
[398470544,1765699832867,-500.0,0.00013695,2]
[398470545,1765699832875,-500.0,0.00013695,2]
[398470546,1765699832884,-500.0,0.00013695,2]
[398470547,1765699832893,-500.0,0.00013698,2]
[398470549,1765699832902,-211.96565952,0.00013698,2]
[398470550,1765699832910,-500.0,0.00013698,2]
[398470552,1765699832920,-261.830516,0.00013699,2]
[398470553,1765699832929,-12846.7272755,0.00013699,2]
[398470555,1765699832939,-500.0,0.00013699,2]
[398470556,1765699832948,-500.0,0.00013699,2]
[398470557,1765699832957,-500.0,0.00013699,2]
[398470558,1765699832966,-500.0,0.00013699,2]
[398470559,1765699832976,-500.0,0.00013699,2]
[398470560,1765699832985,-500.0,0.00013699,2]
[398470561,1765699832994,-453.6568715,0.00013699,2]
[398470562,1765699833004,-500.0,0.00013699,2]
[398470563,1765699833014,-500.0,0.00013699,2]
[398470564,1765699833023,-500.0,0.00013699,2]
[398470565,1765699833033,-500.0,0.00013699,2]
[398470566,1765699833042,-500.0,0.00013699,2]
[398470567,1765699833051,-500.0,0.00013699,2]
[398470568,1765699833061,-500.0,0.00013699,2]
[398470569,1765699833070,-500.0,0.00013699,2]
[398470570,1765699833081,-500.0,0.00013699,2]
[398470571,1765699833090,-500.0,0.00013699,2]
[398470572,1765699833099,-500.0,0.00013699,2]